bitfinex/quotes_SOLUSD_20240925
["timestamp","ask_amount","ask_price","bid_price","bid_amount"]
[1727306878610,0.2479,148.19,148.18,63.07496521]
[1727306881531,0.2479,148.19,148.18,64.42421252]
[1727306881704,0.2479,148.19,148.18,63.07496521]
[1727306883503,0.2479,148.19,148.18,50.776364]
[1727306883733,0.2479,148.19,148.18,63.07496521]
[1727306884944,0.2479,148.19,148.18,50.776364]
[1727306885113,0.2479,148.19,148.18,63.07496521]
[1727306885311,0.2479,148.19,148.18,64.42420017]
[1727306886441,0.2479,148.19,148.18,63.07496521]
[1727306888712,0.2479,148.19,148.18,39.29808121]
[1727306888924,0.2479,148.19,148.18,39.04710121]
[1727306889909,0.2479,148.19,148.18,6.7485]
[1727306890234,0.2479,148.19,148.12,21.3175]
[1727306890235,0.2479,148.19,148.08,31.73524904]
[1727306890420,15.9862,148.17,148.14,23.6257]
[1727306890824,15.9862,148.17,148.14,16.8754]
[1727306891025,15.9862,148.17,148.15,6.7498]
[1727306893037,15.9862,148.17,148.14,23.6256]
[1727306895247,0.38605385,148.16,148.14,23.6256]
[1727306895535,0.38605385,148.16,148.14,16.8754]
[1727306896543,0.38605385,148.16,148.14,23.6257]
[1727306898027,0.38605385,148.16,148.14,16.8754]
[1727306898944,15.9862,148.17,148.14,23.6253]
[1727306901034,15.9862,148.17,148.15,6.7497]
[1727306901835,15.9862,148.17,148.16,6.7494]
[1727306903548,15.9862,148.17,148.15,6.7498]
[1727306907148,15.9862,148.17,148.16,6.7494]
[1727306907539,0.2479,148.19,148.16,6.7494]
[1727306908847,0.2479,148.19,148.18,36.32646521]
[1727306909052,0.2479,148.19,148.18,44.4241373]
[1727306909234,0.2479,148.19,148.18,43.07496521]
[1727306909927,0.2479,148.19,148.18,30.776364]
[1727306910131,0.2479,148.19,148.18,43.07496521]
[1727306910742,0.2479,148.19,148.18,44.42421843]
[1727306910949,0.2479,148.19,148.18,43.07496521]
[1727306915054,0.2479,148.19,148.18,6.7485]
[1727306928163,0.2479,148.19,148.16,16.873]
[1727306928347,0.2479,148.19,148.16,23.6221]
[1727306928765,0.2479,148.19,148.16,16.873]
[1727306929366,0.38605385,148.18,148.16,16.873]
[1727306930170,0.63395385,148.19,148.16,16.873]
[1727306930369,0.2479,148.19,148.16,23.6223]
[1727306931577,0.63395385,148.19,148.16,23.6223]
[1727306935021,0.63395385,148.19,148.16,16.873]
[1727306935313,0.63395385,148.19,148.11,6.7514]
[1727306935314,6.7495,148.16,148.11,6.7514]
[1727306935474,0.38605385,148.15,148.11,6.7514]
[1727306935999,0.38605385,148.15,148.1,16.8796]
[1727306936391,0.38605385,148.16,148.1,16.8796]
[1727306936595,0.38605385,148.16,148.12,16.8777]
[1727306936903,0.38605385,148.16,148.13,6.7504]
[1727306937112,6.996,148.19,148.15,6.7497]
[1727306938106,6.996,148.19,148.14,23.6256]
[1727306939385,0.38605385,148.18,148.14,23.6256]
[1727306940012,0.2479,148.19,148.14,23.6256]
[1727306940205,7.13455385,148.18,148.14,23.6256]
[1727306940798,7.13455385,148.18,148.14,16.8754]
[1727306941107,7.13455385,148.18,148.13,6.7508]
[1727306941694,6.7485,148.18,148.13,6.7508]
[1727306944193,6.9961,148.19,148.13,6.7508]
[1727306944427,0.2479,148.19,148.14,8.09993191]
[1727306944807,0.2479,148.19,148.15,6.7497]
[1727306946123,0.2479,148.19,148.14,6.7502]
[1727306948917,0.2479,148.19,148.15,8.09951017]
[1727306949924,0.2479,148.19,148.15,6.7497]
[1727306950219,7.38205385,148.19,148.14,6.7502]
[1727306952123,0.2479,148.19,148.15,6.7495]
[1727306952322,0.2479,148.19,148.1,16.8798]
[1727306952323,6.3446,148.18,148.1,16.8798]
[1727306952504,6.7499,148.15,148.1,23.6316]
[1727306953099,6.7496,148.16,148.11,6.7517]
[1727306953413,0.38605385,148.15,148.11,6.7517]
[1727306954007,7.13595385,148.15,148.1,23.6316]
[1727306954215,6.7494,148.16,148.11,6.7516]
[1727306954422,0.38605385,148.15,148.11,6.7516]
[1727306958436,7.13545385,148.16,148.11,6.7516]
[1727306959531,6.7494,148.16,148.11,6.7516]
[1727306961508,6.7491,148.17,148.12,6.7512]
[1727306963135,13.0932,148.18,148.13,6.7505]
[1727306963732,6.3446,148.18,148.12,18.22783006]
[1727306963903,6.7493,148.17,148.12,23.6289]
[1727306971035,0.38605385,148.16,148.09,0.12549]
[1727306971243,6.75,148.15,148.11,6.7516]
[1727306971438,0.38605385,148.14,148.11,6.7516]
[1727306975755,6.7495,148.16,148.11,6.7516]
[1727306976247,0.38605385,148.15,148.11,6.7516]
[1727306978050,6.7499,148.15,148.11,6.7516]
[1727306978267,6.7511,148.13,148.09,16.8811]
[1727306978573,0.38605385,148.14,148.05,12.29860121]
[1727306978731,16.5206,148.15,148.09,12.29860121]
[1727306978937,23.2706,148.15,148.1,6.752]
[1727306979455,7.13635385,148.14,148.1,6.752]
[1727306979849,7.13635385,148.14,148.09,6.7526]
[1727306980761,6.7508,148.13,148.09,6.7526]
[1727306981758,6.7505,148.14,148.09,8.10292287]
[1727306982655,6.7505,148.14,148.09,6.7526]
[1727306984262,0.38605385,148.14,148.08,16.8824]
[1727306984466,6.7508,148.13,148.08,23.6354]
[1727306984668,0.38605385,148.12,148.08,23.6354]
[1727306984957,6.7513,148.12,148.08,23.6354]
[1727306985159,7.13775385,148.11,148.05,16.8854]
[1727306986142,0.38605385,148.1,148.06,6.7538]
[1727306986451,0.38605385,148.1,148.05,16.8854]
[1727306986647,6.7527,148.09,148.05,23.6398]
[1727306987446,6.7523,148.1,148.05,23.6398]
[1727306987764,0.38605385,148.09,148.05,23.6398]
[1727306990363,6.7523,148.1,148.05,23.6398]
[1727306991450,6.7518,148.11,148.06,6.7535]
[1727306991654,6.7518,148.11,148.05,16.8854]
[1727306991655,12.8954,148.13,148.08,6.753]
[1727306991953,12.8954,148.13,148.07,23.6368]
[1727306991954,6.7513,148.12,148.07,23.6368]
[1727306992248,6.7513,148.12,148.08,6.753]
[1727306992953,6.7513,148.12,148.07,23.6368]
[1727306993156,6.7513,148.12,148.07,24.98726056]
[1727306993580,6.7513,148.12,148.07,23.6368]
[1727306994760,6.7513,148.12,148.07,24.9872534]
[1727306995477,6.7513,148.12,148.07,23.6368]
[1727306995644,6.7513,148.12,148.07,24.98727276]
[1727306998481,6.1445,148.13,148.07,18.23387276]
[1727306998661,6.7508,148.13,148.09,6.7525]
[1727306998861,6.7508,148.13,148.09,8.10280758]
[1727306999678,6.7508,148.13,148.09,1.35030758]
[1727306999981,6.7505,148.14,148.09,6.7525]
[1727307000185,16.5206,148.15,148.09,6.7525]
[1727307000373,6.7508,148.13,148.09,6.7525]
[1727307002065,6.7504,148.14,148.1,8.22782388]
[1727307002268,7.04610048,148.17,148.12,12.42409121]
[1727307002466,15.6932,148.19,148.12,12.42409121]
[1727307003183,6.7489,148.18,148.13,6.7507]
[1727307004389,15.6932,148.19,148.11,16.8784]
[1727307004390,0.38605385,148.17,148.11,16.8784]
[1727307004772,6.7498,148.16,148.11,16.8784]
[1727307005691,6.7501,148.15,148.11,16.8784]
[1727307005986,6.7494,148.16,148.11,23.63]
[1727307006193,0.38605385,148.15,148.09,26.7524]
[1727307006392,32.5639,148.19,148.09,26.7524]
[1727307006393,24.28842785,148.18,148.09,26.7524]
[1727307006594,6.7507,148.14,148.09,26.7524]
[1727307006765,6.7507,148.14,148.09,6.7524]
[1727307006965,6.7511,148.13,148.08,23.6349]
[1727307007681,6.7504,148.14,148.09,20.40143887]
[1727307007885,6.7504,148.14,148.09,19.05120121]
[1727307009895,6.75,148.15,148.1,20.4008364]
[1727307010268,6.7495,148.16,148.11,19.17569121]
[1727307011298,6.7499,148.15,148.11,0.12549]
[1727307011593,6.7499,148.15,148.1,35.93060121]
[1727307011780,6.7504,148.14,148.1,23.632]
[1727307012966,32.5639,148.19,148.1,23.632]
[1727307013166,6.75,148.15,148.1,23.632]
[1727307013874,6.7504,148.14,148.1,16.88]
[1727307014975,6.7515,148.12,148.09,0.12549]
[1727307015468,6.7517,148.11,148.08,0.12549]
[1727307015869,6.7513,148.12,148.08,0.12549]
[1727307017496,6.7513,148.12,148.08,12.54958121]
[1727307019682,6.75,148.15,148.11,12.42409121]
[1727307019985,16.8728,148.17,148.08,0.12549]
[1727307020294,6.7518,148.11,148.08,0.12549]
[1727307022390,6.7514,148.12,148.08,0.12549]
[1727307022596,6.7514,148.12,148.08,12.42409121]
[1727307023493,6.7514,148.12,148.09,12.29860121]
[1727307024879,6.7509,148.13,148.09,12.29860121]
[1727307025804,6.7509,148.13,148.08,7.00378]
[1727307026011,6.7509,148.13,148.09,12.29860121]
[1727307028013,6.7509,148.13,148.1,0.12549]
[1727307028191,6.7514,148.12,148.08,7.00378]
[1727307028392,6.7514,148.12,148.08,19.30238121]
[1727307029510,22.3919,148.15,148.03,0.2479]
[1727307029815,6.754,148.06,148.03,0.2479]
[1727307030187,6.7544,148.05,148.03,0.2479]
[1727307030611,16.141,148.09,148.03,0.2479]
[1727307031293,16.141,148.09,148.04,1.45498049]
[1727307031492,6.7531,148.08,148.04,1.45498049]
[1727307032212,6.7537,148.07,148.04,0.12549]
[1727307032590,6.7537,148.07,148.03,0.2479]
[1727307033896,6.7541,148.06,148.03,0.2479]
[1727307034811,6.7536,148.07,148.03,1.59870585]
[1727307035497,6.7536,148.07,148.04,0.12549]
[1727307035702,6.7533,148.08,148.05,1.35068876]
[1727307035890,6.7526,148.09,148.05,1.35068876]
[1727307036317,16.88,148.11,148.04,0.12549]
[1727307036318,6.7531,148.08,148.04,0.12549]
[1727307037302,0.38605385,148.1,148.03,0.2479]
[1727307037522,6.7543,148.06,148.03,0.2479]
[1727307037699,6.7545,148.05,148.03,0.2479]
[1727307043525,0.38605385,148.08,148.03,0.2479]
[1727307043715,6.7549,148.04,148.03,0.2479]
[1727307046435,6.7547,148.05,148.03,0.2479]
[1727307055907,6.7549,148.04,148.03,0.2479]
[1727307058007,7.14095385,148.04,148.03,0.2479]
[1727307058436,13.80675014,148.04,148.03,0.2479]
[1727307058616,6.7549,148.04,148.03,0.2479]
[1727307059916,6.7567,148.0,147.99,0.2479]
[1727307063639,6.7563,148.01,147.99,0.2479]
[1727307064020,6.3326,148.05,147.99,0.2479]
[1727307064335,6.7566,148.01,147.99,0.2479]
[1727307064538,20.0,148.04,147.99,0.2479]
[1727307064715,6.7557,148.03,147.99,0.2479]
[1727307064917,6.7559,148.02,147.99,0.2479]
[1727307066240,6.7567,148.0,147.99,0.2479]
[1727307068028,7.14275385,148.0,147.99,0.2479]
[1727307068945,6.7567,148.0,147.99,0.2479]
[1727307069447,7.14275385,148.0,147.99,0.2479]
[1727307070727,6.7567,148.0,147.99,0.2479]
[1727307073744,26.7567,148.0,147.99,0.2479]
[1727307073949,50.533584,148.0,147.99,0.2479]
[1727307075554,26.7567,148.0,147.99,0.2479]
[1727307075741,27.14275385,148.0,147.99,0.2479]
[1727307076542,26.7567,148.0,147.99,0.2479]
[1727307078553,6.7567,148.0,147.99,0.2479]
[1727307080457,6.7564,148.01,147.99,0.2479]
[1727307081227,6.7567,148.0,147.99,0.2479]
[1727307087438,0.38605385,148.02,147.99,0.2479]
[1727307087636,6.7559,148.02,147.99,0.2479]
[1727307088357,6.7563,148.01,147.99,0.2479]
[1727307091757,0.38605385,148.04,147.99,0.2479]
[1727307091945,6.7563,148.01,147.99,0.2479]
[1727307093364,0.12549,148.03,147.99,0.2479]
[1727307093672,26.7567,148.0,147.99,0.2479]
[1727307094949,27.14275385,148.0,147.99,0.2479]
[1727307095160,50.533584,148.0,147.99,0.2479]
[1727307096452,50.659074,148.0,147.99,0.2479]
[1727307096945,26.7567,148.0,147.99,0.2479]
[1727307097341,6.7567,148.0,147.99,0.2479]
[1727307101047,6.7564,148.01,147.99,0.2479]
[1727307102645,54.71348366,148.06,147.99,0.2479]
[1727307102975,83.7587,148.11,148.01,6.5257]
[1727307102976,16.0896,148.11,148.01,6.5257]
[1727307103157,6.7536,148.07,148.03,16.8882]
[1727307103665,6.7544,148.05,148.01,6.5257]
[1727307105786,6.7544,148.05,148.02,1.35096913]
[1727307106282,6.754,148.06,148.02,1.35096913]
[1727307106668,6.754,148.06,148.01,13.2818]
[1727307106982,6.754,148.06,148.02,0.12549]
[1727307109788,0.38605385,148.09,148.01,6.5257]
[1727307109789,16.8833,148.08,148.01,6.5257]
[1727307109952,6.7558,148.02,147.99,20.2479]
[1727307110154,6.7558,148.02,147.99,0.2479]
[1727307110359,43.902374,148.07,147.99,0.2479]
[1727307110865,43.902374,148.07,147.99,1.59908815]
[1727307111557,6.7554,148.03,147.99,7.005]
[1727307111770,6.7554,148.03,148.0,1.35109567]
[1727307111971,6.7554,148.03,147.99,7.005]
[1727307112482,6.7554,148.03,148.0,0.12549]
[1727307114787,20.0,148.07,148.0,1.47658888]
[1727307114961,6.7549,148.04,148.0,8.23328888]
[1727307117867,6.7545,148.05,148.01,6.88159]
[1727307118075,6.7545,148.05,148.02,0.12549]
[1727307118287,6.7545,148.05,147.99,23.8966]
[1727307118493,6.755,148.04,148.0,0.12549]
[1727307120896,6.7554,148.03,148.0,0.12549]
[1727307121270,6.755,148.04,148.0,8.23313906]
[1727307121473,6.7541,148.06,148.02,0.12549]
[1727307121794,6.7538,148.07,148.02,6.88089]
[1727307121981,20.0,148.09,148.02,6.88089]
[1727307121982,6.7541,148.06,148.02,6.88089]
[1727307124391,6.7545,148.05,148.02,0.12549]
[1727307124787,6.7541,148.06,148.02,1.47637031]
[1727307125093,23.93932362,148.1,148.02,1.47637031]
[1727307125094,23.93932362,148.1,148.02,0.12549]
[1727307125296,6.7546,148.05,148.02,0.12549]
[1727307125794,23.93932362,148.1,148.0,0.12549]
[1727307125795,6.7555,148.03,148.0,0.12549]
[1727307125995,16.8854,148.06,147.99,0.2479]
[1727307126207,6.7567,148.0,147.99,0.2479]
[1727307127287,50.533584,148.0,147.99,0.2479]
[1727307127497,50.533584,148.0,147.95,0.4193593]
[1727307127498,6.7585,147.96,147.95,0.4193593]
[1727307127896,26.7585,147.96,147.95,0.4193593]
[1727307128300,20.0,147.96,147.9,0.2479]
[1727307128513,6.7608,147.91,147.9,0.2479]
[1727307129010,20.0,147.96,147.9,0.2479]
[1727307129212,6.7595,147.94,147.9,0.2479]
[1727307129403,20.0,147.97,147.9,0.2479]
[1727307129601,6.7604,147.92,147.9,0.2479]
[1727307130418,17.28245385,147.96,147.9,0.2479]
[1727307130586,6.7604,147.92,147.9,0.2479]
[1727307132391,6.7595,147.94,147.9,0.2479]
[1727307132583,20.0,147.97,147.9,0.2479]
[1727307132584,6.759,147.95,147.91,0.12549]
[1727307133009,20.0,147.97,147.9,0.2479]
[1727307133198,6.7595,147.94,147.9,0.2479]
[1727307134004,6.7595,147.94,147.9,1.59985927]
[1727307135334,6.759,147.95,147.91,6.88629]
[1727307135623,6.7586,147.96,147.92,1.35187679]
[1727307136213,20.0,147.99,147.92,1.35187679]
[1727307136530,6.7585,147.96,147.91,6.88619]
[1727307137426,20.0,147.99,147.91,6.88619]
[1727307137634,6.7593,147.95,147.91,0.12549]
[1727307137820,20.0,147.99,147.91,0.12549]
[1727307138132,6.759,147.95,147.91,0.12549]
[1727307138440,6.7596,147.94,147.91,0.12549]
[1727307138928,6.7591,147.95,147.91,0.12549]
[1727307139931,20.0,147.99,147.91,1.47735669]
[1727307140235,6.7586,147.96,147.91,8.23805669]
[1727307141232,20.0,147.99,147.93,6.88539]
[1727307141534,6.7577,147.98,147.94,8.11100369]
[1727307141721,6.7577,147.98,147.94,1.35170369]
[1727307142826,6.7572,147.99,147.95,6.88439]
[1727307143005,7.06044943,148.03,147.97,0.12549]
[1727307143206,17.1333,148.06,147.99,6.7569]
[1727307143419,17.1333,148.06,148.0,1.35115465]
[1727307143928,0.2479,148.06,148.0,1.35115465]
[1727307144134,6.755,148.04,148.0,1.35115465]
[1727307145835,6.755,148.04,148.0,8.10785465]
[1727307146132,6.7555,148.03,147.98,22.8315]
[1727307146330,6.7555,148.03,147.99,0.25098]
[1727307147737,6.7562,148.02,147.99,0.12549]
[1727307148027,6.7567,148.0,147.97,0.12549]
[1727307148331,6.7567,148.0,147.96,6.609]
[1727307148538,6.7573,147.99,147.96,6.609]
[1727307148707,6.7571,148.0,147.96,6.609]
[1727307149315,17.27505385,148.03,147.96,6.609]
[1727307149514,15.95485385,148.03,147.94,15.7574]
[1727307149729,6.7582,147.97,147.94,15.7574]
[1727307150126,6.7586,147.96,147.94,15.7574]
[1727307150322,6.7586,147.96,147.92,6.2128]
[1727307150715,16.8936,147.99,147.91,16.9017]
[1727307150920,16.8936,147.99,147.9,16.0053]
[1727307150921,6.7595,147.94,147.9,16.0053]
[1727307151843,6.7599,147.93,147.9,16.0053]
[1727307152340,6.7599,147.93,147.91,0.12549]
[1727307152856,6.7596,147.94,147.91,0.12549]
[1727307156233,6.7598,147.94,147.91,0.12549]
[1727307157528,6.7601,147.93,147.9,16.0053]
[1727307158248,6.7605,147.92,147.9,0.2479]
[1727307158955,6.7608,147.91,147.9,0.2479]
[1727307159851,6.7605,147.92,147.9,0.2479]
[1727307160441,16.8958,147.97,147.9,0.2479]
[1727307160670,6.76,147.93,147.9,0.2479]
[1727307163954,6.7595,147.94,147.91,0.12549]
[1727307164353,7.06207646,148.0,147.91,1.47739887]
[1727307164354,20.0,147.99,147.91,1.47739887]
[1727307164656,7.06207646,148.0,147.91,1.47739887]
[1727307164657,6.7593,147.95,147.91,1.47739887]
[1727307164839,74.3997,148.02,147.92,6.76]
[1727307164840,6.7587,147.96,147.92,6.76]
[1727307165046,6.7587,147.96,147.93,1.35177933]
[1727307165928,6.7587,147.96,147.92,1.35178088]
[1727307168643,6.7587,147.96,147.93,0.12549]
[1727307169038,6.7587,147.96,147.92,0.25098]
[1727307169548,6.7591,147.95,147.92,0.12549]
[1727307173640,6.7598,147.94,147.91,0.12549]
[1727307173960,6.76,147.93,147.91,0.12549]
[1727307174337,6.76,147.93,147.9,0.2479]
[1727307174757,6.7607,147.92,147.9,0.2479]
[1727307176857,40.50368897,147.97,147.9,0.2479]
[1727307177044,6.76,147.93,147.9,0.2479]
[1727307178869,40.50368897,147.97,147.9,0.2479]
[1727307179081,6.7608,147.91,147.9,0.2479]
[1727307180575,16.8979,147.95,147.9,0.2479]
[1727307180576,6.7605,147.92,147.9,0.2479]
[1727307181277,6.7608,147.91,147.9,0.2479]
[1727307181578,6.7605,147.92,147.9,0.2479]
[1727307182759,6.7605,147.92,147.9,1.60000444]
[1727307183768,6.7605,147.92,147.9,0.2479]
[1727307184378,7.14685385,147.91,147.9,0.2479]
[1727307184591,7.14685385,147.91,147.81,0.2479]
[1727307184592,23.776884,147.89,147.81,0.2479]
[1727307184891,37.41804385,147.88,147.81,0.2479]
[1727307185061,6.7649,147.82,147.81,0.2479]
[1727307185759,6.7644,147.84,147.81,0.2479]
[1727307186156,16.9082,147.86,147.81,0.2479]
[1727307186568,6.7649,147.82,147.81,0.2479]
[1727307186984,16.9082,147.86,147.81,0.2479]
[1727307187154,6.7645,147.83,147.81,0.2479]
[1727307188159,6.7649,147.82,147.81,0.2479]
[1727307188581,16.9082,147.86,147.81,0.2479]
[1727307188582,6.7645,147.83,147.81,0.2479]
[1727307188787,16.9082,147.86,147.81,0.2479]
[1727307189091,6.7645,147.83,147.81,0.2479]
[1727307189964,0.38605385,147.86,147.81,0.2479]
[1727307190164,6.7641,147.84,147.81,0.2479]
[1727307190567,6.7645,147.83,147.81,0.2479]
[1727307190761,6.764,147.85,147.81,0.2479]
[1727307191156,6.7641,147.84,147.81,0.2479]
[1727307192369,0.38605385,147.86,147.81,0.2479]
[1727307192687,6.7645,147.83,147.81,0.2479]
[1727307193184,6.7649,147.82,147.81,0.2479]
[1727307194362,0.38605385,147.86,147.81,0.2479]
[1727307194679,6.7641,147.84,147.81,0.2479]
[1727307195594,6.7646,147.83,147.81,0.2479]
[1727307196906,6.7649,147.82,147.81,0.2479]
[1727307202476,7.15095385,147.82,147.81,0.2479]
[1727307202982,6.7668,147.78,147.77,0.4193593]
[1727307203488,0.38605385,147.83,147.77,7.1864593]
[1727307203685,6.7655,147.81,147.78,16.4162]
[1727307203882,6.7655,147.81,147.77,7.1864593]
[1727307204471,6.7655,147.81,147.78,0.12549]
[1727307204672,6.7655,147.81,147.77,7.1864593]
[1727307204673,6.7668,147.78,147.77,0.4193593]
[1727307206569,26.7668,147.78,147.77,0.4193593]
[1727307206765,6.7668,147.78,147.77,0.4193593]
[1727307210111,0.38605385,147.8,147.73,0.2479]
[1727307210305,6.7686,147.74,147.73,0.2479]
[1727307219508,23.97709562,147.8,147.73,0.2479]
[1727307219693,6.7685,147.75,147.73,0.2479]
[1727307221814,6.7685,147.75,147.71,16.9244]
[1727307221815,6.7685,147.75,147.72,0.12549]
[1727307222997,6.7678,147.76,147.72,44.49521525]
[1727307223309,6.7678,147.76,147.72,36.37217713]
[1727307223507,6.7678,147.76,147.72,24.027864]
[1727307224011,16.915,147.8,147.72,24.027864]
[1727307224210,6.7686,147.74,147.72,0.12549]
[1727307224615,6.7686,147.74,147.71,24.027864]
[1727307225630,6.7691,147.73,147.7,0.25098]
[1727307225796,6.7691,147.73,147.69,24.027864]
[1727307226205,6.7691,147.73,147.68,57.75467243]
[1727307226522,0.38605385,147.77,147.68,45.4103593]
[1727307226523,6.7696,147.72,147.68,45.4103593]
[1727307226713,6.7696,147.72,147.68,57.75467243]
[1727307227504,6.7696,147.72,147.68,45.4103593]
[1727307227826,6.7696,147.72,147.69,0.12549]
[1727307227992,0.38605385,147.77,147.69,0.12549]
[1727307228197,6.77,147.71,147.69,0.12549]
[1727307228823,6.7699,147.72,147.69,0.12549]
[1727307231427,6.7703,147.71,147.69,0.12549]
[1727307231601,6.2394,147.78,147.69,1.47934752]
[1727307232426,6.7687,147.74,147.71,0.12549]
[1727307232618,6.7687,147.74,147.71,1.47909508]
[1727307233906,6.7687,147.74,147.71,0.12549]
[1727307234322,6.2394,147.78,147.68,7.1903593]
[1727307234323,6.7695,147.72,147.68,7.1903593]
[1727307234518,6.7703,147.71,147.68,0.4193593]
[1727307235033,16.9208,147.75,147.68,0.4193593]
[1727307235205,6.7701,147.71,147.68,0.4193593]
[1727307235605,6.7701,147.71,147.69,0.12549]
[1727307236831,6.7701,147.71,147.68,0.4193593]
[1727307238411,6.7696,147.72,147.69,0.12549]
[1727307239011,6.7692,147.73,147.69,0.12549]
[1727307239211,6.7692,147.73,147.69,24.027864]
[1727307240114,16.9208,147.75,147.69,24.027864]
[1727307240524,6.7692,147.73,147.69,24.027864]
[1727307241439,6.7696,147.72,147.69,24.027864]
[1727307242439,6.77,147.71,147.68,0.4193593]
[1727307245645,16.9208,147.75,147.68,0.4193593]
[1727307245832,6.7709,147.69,147.68,0.4193593]
[1727307246138,16.9237,147.73,147.68,0.4193593]
[1727307246341,6.7709,147.69,147.68,0.4193593]
[1727307247935,15.6708,147.75,147.68,12.76367243]
[1727307248134,6.7692,147.73,147.69,13.82351904]
[1727307248315,6.7692,147.73,147.69,12.46980313]
[1727307248521,6.7692,147.73,147.69,0.25098]
[1727307249033,6.7692,147.73,147.69,0.12549]
[1727307249233,6.7696,147.72,147.68,19.53497243]
[1727307249425,6.7696,147.72,147.68,0.4193593]
[1727307249741,15.6708,147.75,147.68,0.4193593]
[1727307249923,6.7705,147.7,147.68,0.4193593]
[1727307250119,16.9225,147.74,147.68,0.4193593]
[1727307250416,6.7698,147.72,147.68,7.1906593]
[1727307250623,6.7698,147.72,147.68,0.4193593]
[1727307251134,0.38605385,147.74,147.68,0.4193593]
[1727307251320,6.7701,147.71,147.68,0.4193593]
[1727307251719,6.7701,147.71,147.69,1.35388028]
[1727307252941,6.7701,147.71,147.68,0.4193593]
[1727307253641,6.7682,147.75,147.71,6.89539]
[1727307253952,6.7687,147.74,147.69,19.36609313]
[1727307254149,6.7687,147.74,147.68,17.3471593]
[1727307254150,6.7696,147.72,147.68,24.1184593]
[1727307254450,6.7696,147.72,147.68,17.3471593]
[1727307254655,6.2696,147.72,147.68,17.3471593]
[1727307255357,6.7703,147.71,147.68,0.4193593]
[1727307256661,6.7696,147.72,147.68,0.4193593]
[1727307259746,6.769,147.74,147.69,20.59430835]
[1727307259949,6.7696,147.72,147.68,7.1906593]
[1727307260157,6.7696,147.72,147.68,0.4193593]
[1727307261661,6.7694,147.73,147.69,1.35388246]
[1727307261836,6.7694,147.73,147.69,0.12549]
[1727307262959,6.7696,147.72,147.68,7.1905593]
[1727307263163,6.7696,147.72,147.68,0.4193593]
[1727307264450,6.7709,147.69,147.68,0.4193593]
[1727307264659,16.922,147.74,147.68,0.4193593]
[1727307264660,6.7705,147.7,147.68,0.4193593]
[1727307265147,6.77,147.71,147.68,1.77335269]
[1727307265353,6.77,147.71,147.68,0.4193593]
[1727307265553,6.77,147.71,147.69,1.35399172]
[1727307266668,6.7696,147.72,147.69,1.35399172]
[1727307267164,6.7696,147.72,147.68,0.4193593]
[1727307267165,0.38605385,147.73,147.68,0.4193593]
[1727307267374,6.7709,147.69,147.64,0.2479]
[1727307267538,6.7727,147.65,147.64,0.2479]
[1727307268372,6.7724,147.66,147.64,0.2479]
[1727307268751,6.7712,147.69,147.64,0.2479]
[1727307268948,6.5089,147.7,147.64,0.2479]
[1727307268949,6.7715,147.68,147.64,0.2479]
[1727307269149,6.5089,147.7,147.64,0.2479]
[1727307269354,6.7725,147.66,147.64,0.2479]
[1727307269744,6.7714,147.68,147.64,0.2479]
[1727307269944,13.2795,147.7,147.64,0.2479]
[1727307270145,6.7706,147.7,147.64,0.2479]
[1727307270363,0.38605385,147.69,147.64,0.2479]
[1727307270557,6.772,147.67,147.64,0.2479]
[1727307270853,16.408,147.72,147.64,0.2479]
[1727307271048,6.7703,147.71,147.65,1.35436383]
[1727307271366,6.7705,147.7,147.64,0.2479]
[1727307271671,16.408,147.72,147.64,0.2479]
[1727307271878,6.7701,147.71,147.64,0.2479]
[1727307272044,6.7701,147.71,147.64,19.36521313]
[1727307272244,6.7707,147.7,147.64,0.2479]
[1727307272465,16.408,147.72,147.67,6.7716]